[Event "*** Titled Tuesday Blitz"]
[Site "Chess.com"]
[Date "2020.11.24"]
[Round "9"]
[White "pavelalexandru07"]
[Black "CoachHakia"]
[Result "0-1"]
[WhiteElo "2272"]
[BlackElo "2183"]
[TimeControl "180+1"]
[EndTime "12:00:15 PST"]
[Termination "CoachHakia won by resignation"]

1. e4 {[%clk 0:02:56.8]} 1... d5 {[%clk 0:02:59.1]} 2. exd5 {[%clk 0:02:55.2]}
2... Qxd5 {[%clk 0:02:58.4]} 3. Nc3 {[%clk 0:02:55.8]} 3... Qa5 {[%clk
0:02:57.6]} 4. d4 {[%clk 0:02:55.9]} 4... Nf6 {[%clk 0:02:55.7]} 5. Nf3 {[%clk
0:02:56.1]} 5... Bf5 {[%clk 0:02:55.2]} 6. Bc4 {[%clk 0:02:55.3]} 6... c6 {[%clk
0:02:54.9]} 7. Bd2 {[%clk 0:02:54]} 7... e6 {[%clk 0:02:55]} 8. Nd5 {[%clk
0:02:51.2]} 8... Qd8 {[%clk 0:02:50.6]} 9. Nxf6+ {[%clk 0:02:51.6]} 9... gxf6
{[%clk 0:02:51]} 10. Bb3 {[%clk 0:02:50.3]} 10... Bd6 {[%clk 0:02:50.8]} 11. Qe2
{[%clk 0:02:50.3]} 11... Nd7 {[%clk 0:02:50.6]} 12. c4 {[%clk 0:02:46.2]} 12...
Qc7 {[%clk 0:02:38.9]} 13. Rc1 {[%clk 0:02:27.7]} 13... O-O-O {[%clk 0:02:31.7]}
14. O-O {[%clk 0:02:21.6]} 14... Bg4 {[%clk 0:02:26.2]} 15. h3 {[%clk
0:02:20.8]} 15... Bh5 {[%clk 0:02:23.5]} 16. Be3 {[%clk 0:02:10.2]} 16... Rhg8
{[%clk 0:02:20.8]} 17. d5 {[%clk 0:02:08.5]} 17... c5 {[%clk 0:02:13.9]} 18.
dxe6 {[%clk 0:02:04.2]} 18... fxe6 {[%clk 0:02:14.8]} 19. Bc2 {[%clk 0:02:00.4]}
19... Ne5 {[%clk 0:02:08.7]} 20. Kh1 {[%clk 0:01:51.7]} 20... Qc6 {[%clk
0:01:44.4]} 21. Bd1 {[%clk 0:01:30.9]} 21... Rxg2 {[%clk 0:01:21.8]} 22. Kxg2
{[%clk 0:01:30]} 22... Rg8+ {[%clk 0:01:22.3]} 0-1

[Event "*** Titled Tuesday Blitz"]
[Site "Chess.com"]
[Date "2020.11.24"]
[Round "9"]
[White "SanchezKelvin"]
[Black "malakismayil"]
[Result "1-0"]
[WhiteElo "2453"]
[BlackElo "2274"]
[TimeControl "180+1"]
[EndTime "12:00:47 PST"]
[Termination "SanchezKelvin won by resignation"]

1. d4 {[%clk 0:03:00.9]} 1... Nf6 {[%clk 0:02:57.7]} 2. c4 {[%clk 0:02:59.1]}
2... e6 {[%clk 0:02:57.7]} 3. Nf3 {[%clk 0:02:57.8]} 3... Bb4+ {[%clk 0:02:58]}
4. Nbd2 {[%clk 0:02:56.7]} 4... O-O {[%clk 0:02:57.6]} 5. g3 {[%clk 0:02:55.1]}
5... Nc6 {[%clk 0:02:56.9]} 6. Bg2 {[%clk 0:02:54.1]} 6... Bxd2+ {[%clk
0:02:56.5]} 7. Bxd2 {[%clk 0:02:53.5]} 7... d6 {[%clk 0:02:57.4]} 8. O-O {[%clk
0:02:52.8]} 8... h6 {[%clk 0:02:56.6]} 9. Bc3 {[%clk 0:02:52.2]} 9... Ne4 {[%clk
0:02:56.2]} 10. Rc1 {[%clk 0:02:50.8]} 10... f5 {[%clk 0:02:55.5]} 11. d5 {[%clk
0:02:47.7]} 11... Ne7 {[%clk 0:02:48.6]} 12. dxe6 {[%clk 0:02:43.4]} 12... Bxe6
{[%clk 0:02:49.5]} 13. b3 {[%clk 0:02:41.7]} 13... Nxc3 {[%clk 0:02:38.3]} 14.
Rxc3 {[%clk 0:02:40.8]} 14... Nc6 {[%clk 0:02:38.5]} 15. Nd4 {[%clk 0:02:38]}
15... Bd7 {[%clk 0:02:32.8]} 16. c5 {[%clk 0:02:31.8]} 16... dxc5 {[%clk
0:02:23.2]} 17. Nxc6 {[%clk 0:02:21.9]} 17... Bxc6 {[%clk 0:02:21.5]} 18. Bxc6
{[%clk 0:02:20.1]} 18... bxc6 {[%clk 0:02:22.4]} 19. Rxc5 {[%clk 0:02:15.2]}
19... Qe7 {[%clk 0:01:57.4]} 20. Qc2 {[%clk 0:02:09.2]} 20... Rf6 {[%clk
0:01:49.8]} 21. e3 {[%clk 0:01:57.3]} 21... Qd7 {[%clk 0:01:44.8]} 22. Rc1
{[%clk 0:01:52.7]} 22... Rd8 {[%clk 0:01:23.7]} 23. Rxc6 {[%clk 0:01:44.8]}
23... Rxc6 {[%clk 0:01:23.4]} 24. Qxc6 {[%clk 0:01:43]} 24... Qxc6 {[%clk
0:01:22.8]} 25. Rxc6 {[%clk 0:01:40]} 25... Rd2 {[%clk 0:01:23.7]} 26. a4 {[%clk
0:01:39.1]} 26... Rb2 {[%clk 0:01:22.4]} 27. Rxc7 {[%clk 0:01:39.2]} 27... Rxb3
{[%clk 0:01:21.9]} 28. Rxa7 {[%clk 0:01:39.2]} 28... Ra3 {[%clk 0:01:22.2]} 29.
h4 {[%clk 0:01:37.4]} 29... h5 {[%clk 0:01:21.3]} 30. Kg2 {[%clk 0:01:35.3]}
30... Kh7 {[%clk 0:01:20.3]} 31. a5 {[%clk 0:01:34.7]} 31... Kg6 {[%clk
0:01:18.3]} 32. Kf3 {[%clk 0:01:32.9]} 32... Kf6 {[%clk 0:01:18.2]} 33. Ra6+
{[%clk 0:01:30.9]} 33... Ke5 {[%clk 0:01:18.2]} 34. Rg6 {[%clk 0:01:28.3]} 34...
Rxa5 {[%clk 0:01:17.2]} 35. Rxg7 {[%clk 0:01:27.9]} 35... Ra6 {[%clk 0:01:16.1]}
36. Rh7 {[%clk 0:01:26.8]} 1-0

[Event "*** Titled Tuesday Blitz"]
[Site "Chess.com"]
[Date "2020.11.24"]
[Round "9"]
[White "ljuks68"]
[Black "tlomigtlis"]
[Result "0-1"]
[WhiteElo "2397"]
[BlackElo "2572"]
[TimeControl "180+1"]
[EndTime "12:00:58 PST"]
[Termination "tlomigtlis won on time"]

1. e4 {[%clk 0:03:00.5]} 1... c5 {[%clk 0:02:59]} 2. Nf3 {[%clk 0:02:59.5]} 2...
d6 {[%clk 0:02:59.2]} 3. d4 {[%clk 0:02:59.6]} 3... cxd4 {[%clk 0:03:00.1]} 4.
Nxd4 {[%clk 0:03:00]} 4... Nf6 {[%clk 0:03:00.3]} 5. Nc3 {[%clk 0:03:00.1]} 5...
a6 {[%clk 0:03:00.3]} 6. Bg5 {[%clk 0:02:59.8]} 6... Nbd7 {[%clk 0:02:59.3]} 7.
Qe2 {[%clk 0:02:59.1]} 7... h6 {[%clk 0:02:56]} 8. Bh4 {[%clk 0:02:58.9]} 8...
e5 {[%clk 0:02:56]} 9. Nf5 {[%clk 0:02:54.1]} 9... g6 {[%clk 0:02:55.9]} 10. Ne3
{[%clk 0:02:53.4]} 10... Be7 {[%clk 0:02:56.1]} 11. O-O-O {[%clk 0:02:41.7]}
11... b5 {[%clk 0:02:55.1]} 12. f3 {[%clk 0:02:39.4]} 12... Bb7 {[%clk 0:02:54]}
13. Bf2 {[%clk 0:00:50.2]} 13... Rc8 {[%clk 0:02:53.5]} 14. Ncd5 {[%clk
0:00:49]} 14... Nxd5 {[%clk 0:02:49]} 15. Nxd5 {[%clk 0:00:49]} 15... Bxd5
{[%clk 0:02:46.1]} 16. Rxd5 {[%clk 0:00:48.7]} 16... Nb6 {[%clk 0:02:44.1]} 17.
Rd1 {[%clk 0:00:47.7]} 17... Qc7 {[%clk 0:02:42.6]} 18. Kb1 {[%clk 0:00:46.4]}
18... Nc4 {[%clk 0:02:41]} 19. Qe1 {[%clk 0:00:41.5]} 19... Nb6 {[%clk 0:02:15]}
20. Bxb6 {[%clk 0:00:37.6]} 20... Qxb6 {[%clk 0:02:15.8]} 21. h4 {[%clk
0:00:33.5]} 21... O-O {[%clk 0:02:08.1]} 22. h5 {[%clk 0:00:30.8]} 22... g5
{[%clk 0:02:08.3]} 23. g3 {[%clk 0:00:29.4]} 23... b4 {[%clk 0:02:05.6]} 24. Bh3
{[%clk 0:00:26.8]} 24... Rc7 {[%clk 0:02:01.1]} 25. f4 {[%clk 0:00:24.7]} 25...
a5 {[%clk 0:01:59.5]} 26. Bf5 {[%clk 0:00:14.3]} 26... a4 {[%clk 0:01:58.7]} 0-1

[Event "*** Titled Tuesday Blitz"]
[Site "Chess.com"]
[Date "2020.11.24"]
[Round "9"]
[White "Unknown_IM"]
[Black "PawnEatingZombie"]
[Result "1-0"]
[WhiteElo "2385"]
[BlackElo "2260"]
[TimeControl "180+1"]
[EndTime "12:01:01 PST"]
[Termination "Unknown_IM won on time"]

1. e4 {[%clk 0:02:55.6]} 1... c6 {[%clk 0:00:24.7]} 2. d4 {[%clk 0:02:45]} 2...
d5 {[%clk 0:00:24.8]} 3. exd5 {[%clk 0:02:45.9]} 3... cxd5 {[%clk 0:00:25]} 4.
Bd3 {[%clk 0:02:45.5]} 4... Nc6 {[%clk 0:00:24.9]} 5. c3 {[%clk 0:02:44.9]} 5...
Qc7 {[%clk 0:00:25.5]} 6. Ne2 {[%clk 0:02:43.9]} 6... Bg4 {[%clk 0:00:25.4]} 7.
O-O {[%clk 0:02:43.4]} 7... e6 {[%clk 0:00:23.9]} 8. Qe1 {[%clk 0:02:43.1]} 8...
Nf6 {[%clk 0:00:22.7]} 9. f3 {[%clk 0:02:42.6]} 9... Bh5 {[%clk 0:00:23.3]} 10.
Bg5 {[%clk 0:02:42.8]} 10... Bg6 {[%clk 0:00:20.9]} 11. Bxg6 {[%clk 0:02:38.8]}
11... hxg6 {[%clk 0:00:20.7]} 12. h3 {[%clk 0:02:38.1]} 12... Bd6 {[%clk
0:00:19.3]} 13. Nd2 {[%clk 0:02:34.6]} 13... O-O-O {[%clk 0:00:18.9]} 14. Rc1
{[%clk 0:02:32.8]} 14... Kb8 {[%clk 0:00:17.2]} 15. Qf2 {[%clk 0:02:30.9]} 15...
e5 {[%clk 0:00:16.2]} 16. Rfd1 {[%clk 0:02:17.4]} 16... e4 {[%clk 0:00:13.5]}
17. Bxf6 {[%clk 0:02:14.1]} 17... gxf6 {[%clk 0:00:13.1]} 18. fxe4 {[%clk
0:02:13.9]} 18... dxe4 {[%clk 0:00:12.2]} 19. Nxe4 {[%clk 0:02:12.8]} 19... Bh2+
{[%clk 0:00:11.9]} 20. Kh1 {[%clk 0:02:12.4]} 20... f5 {[%clk 0:00:12]} 21. Nc5
{[%clk 0:02:09.9]} 21... Bd6 {[%clk 0:00:09.2]} 22. Nd3 {[%clk 0:02:09.3]} 22...
Rh7 {[%clk 0:00:07.2]} 23. c4 {[%clk 0:02:07.3]} 23... Rdh8 {[%clk 0:00:05.8]}
24. Qf3 {[%clk 0:02:06.1]} 24... g5 {[%clk 0:00:02]} 25. Qxf5 {[%clk 0:02:03.9]}
25... g4 {[%clk 0:00:02.2]} 26. Qxg4 {[%clk 0:02:03.8]} 26... Qd8 {[%clk
0:00:01.3]} 27. c5 {[%clk 0:02:03.4]} 27... Rg8 {[%clk 0:00:01.2]} 28. Qf3
{[%clk 0:02:02]} 28... Bc7 {[%clk 0:00:01.6]} 29. d5 {[%clk 0:02:01.4]} 1-0

[Event "*** Titled Tuesday Blitz"]
[Site "Chess.com"]
[Date "2020.11.24"]
[Round "9"]
[White "TheCairnTerrier"]
[Black "Chernov_Mikhail"]
[Result "1-0"]
[WhiteElo "2182"]
[BlackElo "2319"]
[TimeControl "180+1"]
[EndTime "12:01:02 PST"]
[Termination "TheCairnTerrier won by resignation"]

1. e4 {[%clk 0:03:00.9]} 1... c5 {[%clk 0:02:59.7]} 2. Nf3 {[%clk 0:03:00.7]}
2... Nc6 {[%clk 0:02:59.8]} 3. Bb5 {[%clk 0:03:00.5]} 3... g6 {[%clk 0:03:00.1]}
4. Bxc6 {[%clk 0:02:59.8]} 4... bxc6 {[%clk 0:03:01]} 5. O-O {[%clk 0:02:58.6]}
5... Bg7 {[%clk 0:03:01.5]} 6. Re1 {[%clk 0:02:58.5]} 6... Nh6 {[%clk
0:02:56.9]} 7. d3 {[%clk 0:02:49.7]} 7... O-O {[%clk 0:02:56.7]} 8. Nc3 {[%clk
0:02:48.7]} 8... e5 {[%clk 0:02:53.9]} 9. Bxh6 {[%clk 0:02:40.1]} 9... Bxh6
{[%clk 0:02:54.8]} 10. Nxe5 {[%clk 0:02:40.2]} 10... Qc7 {[%clk 0:02:31.2]} 11.
Ng4 {[%clk 0:02:32.4]} 11... Bg7 {[%clk 0:02:30.9]} 12. Qf3 {[%clk 0:02:32.7]}
12... d6 {[%clk 0:02:21.8]} 13. Nf6+ {[%clk 0:02:31.2]} 13... Kh8 {[%clk
0:02:22.4]} 14. e5 {[%clk 0:02:08.8]} 14... dxe5 {[%clk 0:02:19.3]} 15. Nce4
{[%clk 0:02:07.5]} 15... Qe7 {[%clk 0:02:03]} 16. g4 {[%clk 0:01:59.8]} 16...
Rb8 {[%clk 0:01:46]} 17. b3 {[%clk 0:01:58.4]} 17... Bxg4 {[%clk 0:01:42.2]} 18.
Qxg4 {[%clk 0:01:22]} 18... Bxf6 {[%clk 0:01:41.6]} 19. Nxf6 {[%clk 0:01:22.9]}
19... Qxf6 {[%clk 0:01:42.5]} 20. Re4 {[%clk 0:01:21.5]} 20... Qg7 {[%clk
0:01:33.7]} 21. Qg3 {[%clk 0:01:20.7]} 21... Rbe8 {[%clk 0:01:28]} 22. Rae1
{[%clk 0:01:19.2]} 22... f6 {[%clk 0:01:26.1]} 23. Qe3 {[%clk 0:01:14.6]} 23...
Qe7 {[%clk 0:01:06.4]} 24. Rc4 {[%clk 0:01:14.2]} 24... f5 {[%clk 0:01:04]} 25.
Rxc5 {[%clk 0:01:03.8]} 25... Qg5+ {[%clk 0:00:56.3]} 26. Qxg5 {[%clk
0:01:03.4]} 1-0

[Event "*** Titled Tuesday Blitz"]
[Site "Chess.com"]
[Date "2020.11.24"]
[Round "9"]
[White "Kretov_Evgenij"]
[Black "MokshanovAlexey"]
[Result "0-1"]
[WhiteElo "2448"]
[BlackElo "2611"]
[TimeControl "180+1"]
[EndTime "12:01:07 PST"]
[Termination "MokshanovAlexey won by resignation"]

1. d4 {[%clk 0:03:00.9]} 1... d5 {[%clk 0:03:00]} 2. c4 {[%clk 0:03:01.1]} 2...
e6 {[%clk 0:03:00.3]} 3. Nc3 {[%clk 0:03:01.4]} 3... Nf6 {[%clk 0:03:00]} 4.
cxd5 {[%clk 0:03:01.3]} 4... exd5 {[%clk 0:03:00.1]} 5. Bg5 {[%clk 0:03:01.3]}
5... c6 {[%clk 0:03:00.3]} 6. e3 {[%clk 0:03:01.6]} 6... Be7 {[%clk 0:03:00.8]}
7. Bd3 {[%clk 0:03:01.6]} 7... O-O {[%clk 0:03:01.2]} 8. Qc2 {[%clk 0:03:02]}
8... Nbd7 {[%clk 0:03:01.5]} 9. Nf3 {[%clk 0:03:02.2]} 9... Re8 {[%clk
0:03:01.9]} 10. O-O {[%clk 0:03:02.3]} 10... Nf8 {[%clk 0:03:02.3]} 11. Rab1
{[%clk 0:03:02.4]} 11... Bd6 {[%clk 0:02:55.3]} 12. b4 {[%clk 0:03:00.1]} 12...
a6 {[%clk 0:02:55.8]} 13. a4 {[%clk 0:02:59.4]} 13... Ng6 {[%clk 0:02:56.1]} 14.
b5 {[%clk 0:02:58]} 14... axb5 {[%clk 0:02:56.4]} 15. axb5 {[%clk 0:02:57.5]}
15... h6 {[%clk 0:02:56.9]} 16. Bxf6 {[%clk 0:02:50.4]} 16... Qxf6 {[%clk
0:02:57.8]} 17. bxc6 {[%clk 0:02:49.6]} 17... bxc6 {[%clk 0:02:58.7]} 18. e4
{[%clk 0:02:34.3]} 18... Nf4 {[%clk 0:02:47.1]} 19. e5 {[%clk 0:02:29.5]} 19...
Qe6 {[%clk 0:02:45.8]} 20. Bh7+ {[%clk 0:02:00.9]} 20... Kh8 {[%clk 0:02:44.5]}
21. h3 {[%clk 0:01:36.6]} 21... Nxg2 {[%clk 0:02:35.4]} 22. exd6 {[%clk
0:00:56.4]} 22... Qxh3 {[%clk 0:02:33.4]} 23. Nh2 {[%clk 0:00:38.2]} 23... Nf4
{[%clk 0:02:31.1]} 24. f3 {[%clk 0:00:37.6]} 24... Re2 {[%clk 0:02:30]} 25. Qxe2
{[%clk 0:00:36.4]} 25... Nxe2+ {[%clk 0:02:29.8]} 26. Nxe2 {[%clk 0:00:36.5]}
26... Kxh7 {[%clk 0:02:30.1]} 27. Rf2 {[%clk 0:00:34.5]} 27... Bf5 {[%clk
0:02:26.5]} 28. Rbf1 {[%clk 0:00:28.8]} 28... Bd3 {[%clk 0:02:15.7]} 29. Rg2
{[%clk 0:00:27]} 29... Bxe2 {[%clk 0:02:15.4]} 30. Rxe2 {[%clk 0:00:27]} 30...
Qg3+ {[%clk 0:02:15.7]} 31. Kh1 {[%clk 0:00:25.8]} 31... Qxd6 {[%clk 0:02:15.8]}
32. Ng4 {[%clk 0:00:26.1]} 32... Qf4 {[%clk 0:02:08.1]} 33. Ne5 {[%clk
0:00:25.2]} 33... Qxd4 {[%clk 0:01:55.9]} 34. Nxc6 {[%clk 0:00:24.8]} 34... Qc4
{[%clk 0:01:51.1]} 0-1

[Event "*** Titled Tuesday Blitz"]
[Site "Chess.com"]
[Date "2020.11.24"]
[Round "9"]
[White "cstevens1"]
[Black "DishonorOnYourCow"]
[Result "1-0"]
[WhiteElo "2586"]
[BlackElo "2449"]
[TimeControl "180+1"]
[EndTime "12:01:09 PST"]
[Termination "cstevens1 won by resignation"]

1. e4 {[%clk 0:03:00.9]} 1... c5 {[%clk 0:02:57.2]} 2. Nf3 {[%clk 0:03:01.1]}
2... d6 {[%clk 0:02:56.9]} 3. d4 {[%clk 0:03:01.5]} 3... cxd4 {[%clk 0:02:57.4]}
4. Nxd4 {[%clk 0:03:02.4]} 4... Nf6 {[%clk 0:02:57.6]} 5. f3 {[%clk 0:03:02.9]}
5... e5 {[%clk 0:02:56.8]} 6. Nb3 {[%clk 0:03:00.9]} 6... Be6 {[%clk 0:02:43.5]}
7. c4 {[%clk 0:03:00.6]} 7... a5 {[%clk 0:02:31.1]} 8. Be3 {[%clk 0:02:59.6]}
8... Nc6 {[%clk 0:02:22.1]} 9. Be2 {[%clk 0:02:57.1]} 9... a4 {[%clk 0:02:12.4]}
10. N3d2 {[%clk 0:02:55.9]} 10... Be7 {[%clk 0:02:06.2]} 11. O-O {[%clk
0:02:51.3]} 11... O-O {[%clk 0:02:04.3]} 12. Na3 {[%clk 0:02:51.7]} 12... Nd7
{[%clk 0:01:56.3]} 13. Ndb1 {[%clk 0:02:51.7]} 13... f5 {[%clk 0:01:54.7]} 14.
exf5 {[%clk 0:02:51.2]} 14... Bxf5 {[%clk 0:01:54.4]} 15. Nc3 {[%clk 0:02:51.7]}
15... Kh8 {[%clk 0:01:53.2]} 16. Nab5 {[%clk 0:02:51.6]} 16... Nc5 {[%clk
0:01:43.6]} 17. Qd2 {[%clk 0:02:45.7]} 17... Ne6 {[%clk 0:01:14.1]} 18. Nd5
{[%clk 0:02:41.1]} 18... Ra6 {[%clk 0:00:50.4]} 19. Rfd1 {[%clk 0:02:31.7]}
19... e4 {[%clk 0:00:40]} 20. f4 {[%clk 0:02:24.1]} 20... Nb8 {[%clk 0:00:30]}
21. Nxe7 {[%clk 0:02:18.2]} 21... Qxe7 {[%clk 0:00:30.9]} 22. Nxd6 {[%clk
0:02:18.7]} 22... Bg6 {[%clk 0:00:26.2]} 23. c5 {[%clk 0:02:07]} 23... Nc6
{[%clk 0:00:19.7]} 24. Bxa6 {[%clk 0:02:06.1]} 24... bxa6 {[%clk 0:00:19.2]} 25.
Rac1 {[%clk 0:01:57]} 25... Rd8 {[%clk 0:00:17.2]} 26. f5 {[%clk 0:01:47.9]}
26... Bh5 {[%clk 0:00:16.2]} 27. fxe6 {[%clk 0:01:46.9]} 27... Bxd1 {[%clk
0:00:15.4]} 28. Rxd1 {[%clk 0:01:47.4]} 28... Qxe6 {[%clk 0:00:15.9]} 29. Qd5
{[%clk 0:01:46.5]} 29... Qf6 {[%clk 0:00:14.7]} 30. Qxc6 {[%clk 0:01:38]} 1-0

[Event "*** Titled Tuesday Blitz"]
[Site "Chess.com"]
[Date "2020.11.24"]
[Round "9"]
[White "alexrustemov"]
[Black "Aureliano-Buendia"]
[Result "1-0"]
[WhiteElo "2650"]
[BlackElo "2484"]
[TimeControl "180+1"]
[EndTime "12:01:12 PST"]
[Termination "alexrustemov won by resignation"]

1. d4 {[%clk 0:03:00.9]} 1... d5 {[%clk 0:02:58.7]} 2. c4 {[%clk 0:02:59.4]}
2... e5 {[%clk 0:02:59]} 3. dxe5 {[%clk 0:02:55.4]} 3... d4 {[%clk 0:02:59.9]}
4. Nf3 {[%clk 0:02:54.6]} 4... Nc6 {[%clk 0:02:59.9]} 5. g3 {[%clk 0:02:54.1]}
5... Be6 {[%clk 0:02:59.9]} 6. Nbd2 {[%clk 0:02:49.2]} 6... Qd7 {[%clk
0:02:59.6]} 7. Bg2 {[%clk 0:02:48.3]} 7... O-O-O {[%clk 0:02:40]} 8. O-O {[%clk
0:02:45.5]} 8... Bh3 {[%clk 0:02:39.4]} 9. Nb3 {[%clk 0:02:41.7]} 9... h5 {[%clk
0:02:32.4]} 10. Bg5 {[%clk 0:02:34.5]} 10... Be7 {[%clk 0:02:29.1]} 11. Qd2
{[%clk 0:02:10.4]} 11... h4 {[%clk 0:02:07.2]} 12. Bxh4 {[%clk 0:01:50.9]} 12...
Bxh4 {[%clk 0:01:56.8]} 13. Nxh4 {[%clk 0:01:49.5]} 13... Rxh4 {[%clk
0:01:50.2]} 14. gxh4 {[%clk 0:01:49.4]} 14... Bxg2 {[%clk 0:01:39.1]} 15. Kxg2
{[%clk 0:01:49.1]} 15... Qg4+ {[%clk 0:01:38.3]} 16. Kh1 {[%clk 0:01:48.9]}
16... Qxh4 {[%clk 0:01:37.5]} 17. Rg1 {[%clk 0:01:45.2]} 17... Nge7 {[%clk
0:01:31.7]} 18. Rg2 {[%clk 0:01:33.1]} 18... Nxe5 {[%clk 0:01:14.5]} 19. Qg5
{[%clk 0:01:30.7]} 19... Qxg5 {[%clk 0:01:02.8]} 20. Rxg5 {[%clk 0:01:31.6]}
20... N7g6 {[%clk 0:00:44.4]} 21. Rd1 {[%clk 0:01:23]} 21... d3 {[%clk
0:00:41.4]} 22. exd3 {[%clk 0:01:20.9]} 22... Nxd3 {[%clk 0:00:40.4]} 23. Rd2
{[%clk 0:01:17.5]} 23... Ngf4 {[%clk 0:00:35.7]} 24. Rxg7 {[%clk 0:01:13.7]}
24... Nxf2+ {[%clk 0:00:34.8]} 25. Rxf2 {[%clk 0:01:13]} 1-0

[Event "*** Titled Tuesday Blitz"]
[Site "Chess.com"]
[Date "2020.11.24"]
[Round "9"]
[White "PattyCastillo"]
[Black "03revilo"]
[Result "1-0"]
[WhiteElo "2048"]
[BlackElo "2297"]
[TimeControl "180+1"]
[EndTime "12:01:12 PST"]
[Termination "PattyCastillo won by resignation"]

1. d4 {[%clk 0:03:00.9]} 1... d5 {[%clk 0:02:56.4]} 2. Nf3 {[%clk 0:03:00.5]}
2... e6 {[%clk 0:02:56.9]} 3. e3 {[%clk 0:03:00.5]} 3... c5 {[%clk 0:02:54.6]}
4. Bd3 {[%clk 0:02:58.2]} 4... Nf6 {[%clk 0:02:54.2]} 5. b3 {[%clk 0:02:56.8]}
5... Nc6 {[%clk 0:02:54.1]} 6. Bb2 {[%clk 0:02:57]} 6... Be7 {[%clk 0:02:45.1]}
7. O-O {[%clk 0:02:56.3]} 7... O-O {[%clk 0:02:44.8]} 8. Nbd2 {[%clk 0:02:55.8]}
8... b6 {[%clk 0:02:44.7]} 9. Ne5 {[%clk 0:02:55.7]} 9... Bb7 {[%clk 0:02:44.7]}
10. f4 {[%clk 0:02:55.3]} 10... Rc8 {[%clk 0:02:35.7]} 11. a3 {[%clk 0:02:54.5]}
11... cxd4 {[%clk 0:02:27]} 12. exd4 {[%clk 0:02:54.3]} 12... Nxe5 {[%clk
0:02:26.4]} 13. fxe5 {[%clk 0:02:51.2]} 13... Ne4 {[%clk 0:02:27.3]} 14. Qe2
{[%clk 0:02:17.2]} 14... Nc3 {[%clk 0:01:56.2]} 15. Qh5 {[%clk 0:01:31.6]} 15...
g6 {[%clk 0:01:50.8]} 16. Qg4 {[%clk 0:01:26.2]} 16... Qc7 {[%clk 0:01:35.8]}
17. h4 {[%clk 0:01:17.7]} 17... Ne4 {[%clk 0:01:34.4]} 18. Nf3 {[%clk
0:01:03.7]} 18... h5 {[%clk 0:01:31.3]} 19. Qh3 {[%clk 0:00:59.3]} 19... a5
{[%clk 0:01:07.7]} 20. Rae1 {[%clk 0:00:49.8]} 20... Ra8 {[%clk 0:01:06.8]} 21.
Ng5 {[%clk 0:00:48.4]} 21... Bf6 {[%clk 0:00:50.9]} 22. exf6 {[%clk 0:00:42.7]}
1-0

[Event "*** Titled Tuesday Blitz"]
[Site "Chess.com"]
[Date "2020.11.24"]
[Round "9"]
[White "PowerThinking2650"]
[Black "juancruzarias"]
[Result "1-0"]
[WhiteElo "2403"]
[BlackElo "2546"]
[TimeControl "180+1"]
[EndTime "12:01:14 PST"]
[Termination "PowerThinking2650 won by resignation"]

1. e4 {[%clk 0:02:42.1]} 1... e6 {[%clk 0:03:00.5]} 2. d4 {[%clk 0:02:41.1]}
2... d5 {[%clk 0:03:01.1]} 3. Nd2 {[%clk 0:02:40.9]} 3... Be7 {[%clk 0:03:01]}
4. Ngf3 {[%clk 0:02:38.3]} 4... Nf6 {[%clk 0:03:01.3]} 5. e5 {[%clk 0:02:38.2]}
5... Nfd7 {[%clk 0:03:01.9]} 6. Bd3 {[%clk 0:02:38.3]} 6... c5 {[%clk
0:03:02.8]} 7. c3 {[%clk 0:02:38.7]} 7... Nc6 {[%clk 0:03:03.3]} 8. O-O {[%clk
0:02:32.4]} 8... a5 {[%clk 0:03:03.6]} 9. Re1 {[%clk 0:02:27.2]} 9... cxd4
{[%clk 0:02:52]} 10. cxd4 {[%clk 0:02:25.9]} 10... g5 {[%clk 0:02:42.6]} 11. g4
{[%clk 0:01:25.5]} 11... h5 {[%clk 0:02:41.8]} 12. h3 {[%clk 0:01:22.3]} 12...
hxg4 {[%clk 0:02:41.6]} 13. hxg4 {[%clk 0:01:23.2]} 13... Qb6 {[%clk 0:02:42]}
14. Qa4 {[%clk 0:00:57.8]} 14... Qc7 {[%clk 0:02:41.4]} 15. Kg2 {[%clk
0:00:55.6]} 15... Nb6 {[%clk 0:02:36.7]} 16. Qc2 {[%clk 0:00:48.7]} 16... Bd7
{[%clk 0:02:32.8]} 17. Nb3 {[%clk 0:00:45.9]} 17... a4 {[%clk 0:02:29.7]} 18.
Nc5 {[%clk 0:00:33.2]} 18... Nb4 {[%clk 0:02:28.8]} 19. Qe2 {[%clk 0:00:24.6]}
19... Nxd3 {[%clk 0:02:27.8]} 20. Nxd3 {[%clk 0:00:23.8]} 20... Bb5 {[%clk
0:02:10.8]} 21. Be3 {[%clk 0:00:21.8]} 21... Rc8 {[%clk 0:02:03.4]} 22. Rac1
{[%clk 0:00:20.3]} 22... Qd7 {[%clk 0:02:02.8]} 23. Qd2 {[%clk 0:00:19.7]} 23...
Nc4 {[%clk 0:02:01.5]} 24. Qe2 {[%clk 0:00:18.3]} 24... Nxb2 {[%clk 0:01:54.1]}
25. Qxb2 {[%clk 0:00:17.6]} 25... Bxd3 {[%clk 0:01:54]} 26. Rh1 {[%clk 0:00:15]}
26... Be4 {[%clk 0:01:54]} 27. Rxh8+ {[%clk 0:00:13.4]} 27... Bf8 {[%clk
0:01:54]} 28. Rxc8+ {[%clk 0:00:13.6]} 28... Qxc8 {[%clk 0:01:53]} 29. Qb4
{[%clk 0:00:14]} 29... Kd7 {[%clk 0:01:41.7]} 30. Rxf8 {[%clk 0:00:13.7]} 1-0